bitfinex/quotes_SOLUSD_20230904
["timestamp","ask_amount","ask_price","bid_price","bid_amount"]
[1693823876275,10.88393,19.828,19.814,55.0]
[1693823876571,0.51503948,19.827,19.814,55.0]
[1693823876778,10.88393,19.828,19.814,55.0]
[1693823877580,0.56332058,19.827,19.814,55.0]
[1693823877778,10.88393,19.828,19.814,55.0]
[1693823879280,0.55876656,19.827,19.814,55.0]
[1693823881775,2.16578789,19.829,19.814,55.0]
[1693823886680,29.2,19.83,19.814,55.0]
[1693823887381,29.2,19.83,19.814,95.26236124]
[1693823888583,2.16578789,19.829,19.814,95.26236124]
[1693823892781,2.16578789,19.829,19.814,40.26236124]
[1693823893095,2.16578789,19.829,19.813,20.0]
[1693823893272,2.16578789,19.829,19.811,20.0]
[1693823893583,2.16578789,19.829,19.814,20.0]
[1693823893769,2.16578789,19.829,19.811,20.0]
[1693823894684,2.16578789,19.829,19.812,55.0]
[1693823894882,2.16578789,19.829,19.813,20.0]
[1693823895199,2.16578789,19.829,19.814,55.0]
[1693823895385,29.2,19.83,19.814,55.0]
[1693823895685,2.16578789,19.829,19.814,55.0]
[1693823901380,29.2,19.83,19.814,55.0]
[1693823901580,2.16578789,19.829,19.814,55.0]
[1693823903387,2.16578789,19.829,19.814,55.0]
[1693823905587,2.16578789,19.829,19.814,94.83451059]
[1693823905784,2.16578789,19.829,19.814,44.83451059]
[1693823905988,2.16578789,19.829,19.814,39.83451059]
[1693823906288,2.16578789,19.829,19.813,20.0]
[1693823906490,2.16578789,19.829,19.813,25.27002177]
[1693823906791,2.16578789,19.829,19.814,20.0]
[1693823907894,2.16578789,19.829,19.815,55.0]
[1693823910191,29.2,19.83,19.815,55.0]
[1693823913087,2.16578789,19.829,19.815,55.0]
[1693823913690,29.2,19.83,19.815,55.0]
[1693823914997,29.2,19.83,19.814,20.0]
[1693823915196,29.2,19.83,19.81,111.8385469]
[1693823915197,22.12303799,19.829,19.81,111.8385469]
[1693823915503,29.2,19.82,19.794,0.79714674]
[1693823915823,2.12303799,19.819,19.794,20.79714674]
[1693823916102,151.37993799,19.819,19.794,20.79714674]
[1693823916304,2.31759058,19.818,19.794,20.79714674]
[1693823916511,2.31759058,19.818,19.794,0.79714674]
[1693823916684,2.31759058,19.818,19.794,26.06716851]
[1693823916881,2.31759058,19.818,19.796,1.0]
[1693823917082,2.31759058,19.819,19.797,44.73996755]
[1693823917285,29.2,19.81,19.799,1.0]
[1693823917493,29.2,19.81,19.798,1.0]
[1693823917696,29.2,19.81,19.791,1.0]
[1693823917881,29.2,19.81,19.791,21.0]
[1693823918482,94.2569,19.814,19.792,25.27002177]
[1693823918688,20.0,19.813,19.794,1.0]
[1693823918907,29.2,19.82,19.795,25.27002177]
[1693823919099,2.31759058,19.819,19.796,21.0]
[1693823919404,57.31759058,19.819,19.796,21.0]
[1693823919605,57.31759058,19.819,19.796,46.27002177]
[1693823919994,155.96969058,19.819,19.796,46.27002177]
[1693823920709,155.96969058,19.819,19.796,103.58761277]
[1693823920886,100.96969058,19.819,19.8,29.2]
[1693823921091,2.31759058,19.819,19.801,1.0]
[1693823921411,29.2,19.82,19.801,46.27002177]
[1693823921704,2.31759058,19.819,19.801,46.27002177]
[1693823923006,2.31759058,19.824,19.801,46.27002177]
[1693823923301,2.31759058,19.822,19.801,46.27002177]
[1693823924900,2.31759058,19.822,19.802,55.0]
[1693823925100,2.31759058,19.822,19.803,1.0]
[1693823925792,2.31759058,19.822,19.803,56.0]
[1693823925992,2.31759058,19.822,19.804,55.0]
[1693823926197,2.31759058,19.822,19.805,1.0]
[1693823929694,29.12,19.82,19.805,1.0]
[1693823929896,2.31759058,19.819,19.805,1.0]
[1693823931199,2.31759058,19.822,19.805,1.0]
[1693823932414,2.31759058,19.822,19.805,21.0]
[1693823932600,10.88393,19.823,19.805,21.0]
[1693823932601,10.88393,19.823,19.81,29.12]
[1693823932915,10.88393,19.823,19.811,100.27002177]
[1693823933715,2.31759058,19.828,19.811,100.27002177]
[1693823933915,2.31759058,19.828,19.811,196.06062177]
[1693823934099,97.00279058,19.839,19.811,121.06062177]
[1693823934294,29.12,19.83,19.812,20.0]
[1693823934501,57.31759058,19.829,19.811,20.0]
[1693823934800,162.88672058,19.829,19.811,20.0]
[1693823935205,107.88672058,19.829,19.811,20.0]
[1693823935433,107.88672058,19.829,19.812,55.0]
[1693823937700,107.88672058,19.829,19.812,110.0]
[1693823938801,13.20152058,19.829,19.812,110.0]
[1693823939102,10.88393,19.829,19.812,110.0]
[1693823939320,10.88393,19.829,19.812,385.27002177]
[1693823939613,10.88393,19.829,19.813,45.27002177]
[1693823939804,10.88393,19.829,19.814,55.0]
[1693823940009,10.88393,19.829,19.815,45.27002177]
[1693823940502,10.88393,19.829,19.816,55.0]
[1693823940705,2.31759058,19.836,19.817,20.0]
[1693823940904,2.31759058,19.836,19.818,55.0]
[1693823941313,2.31759058,19.836,19.819,20.0]
[1693823941623,2.31759058,19.839,19.82,55.0]
[1693823941799,2.31759058,19.837,19.821,20.0]
[1693823942005,2.31759058,19.837,19.822,55.0]
[1693823943600,2.31759058,19.835,19.822,55.0]
[1693823944420,2.31759058,19.835,19.818,55.0]
[1693823944719,2.31759058,19.835,19.81,84.31818456]
[1693823944720,25.27002177,19.834,19.81,84.31818456]
[1693823944909,77.31759058,19.833,19.81,84.31818456]
[1693823945107,102.58761235,19.833,19.81,84.31818456]
[1693823945615,102.58761235,19.833,19.81,109.58820633]
[1693823945616,102.29926,19.832,19.81,109.58820633]
[1693823945820,13.21795058,19.831,19.811,20.0]
[1693823946015,10.90036,19.83,19.812,55.0]
[1693823947916,0.84344833,19.829,19.812,55.0]
[1693823949423,0.84344833,19.829,19.81,172.10700785]
[1693823949722,0.84344833,19.829,19.81,40.39939485]
[1693823949723,25.27002177,19.828,19.81,40.39939485]
[1693823950028,25.27002177,19.828,19.805,66.31946677]
[1693823950029,2.31759058,19.826,19.805,25.27002177]
[1693823950906,10.91662,19.825,19.806,55.0]
[1693823951110,2.31759058,19.824,19.806,55.0]
[1693823951304,22.31759058,19.824,19.805,25.27002177]
[1693823951508,2.31759058,19.822,19.803,1.0]
[1693823951706,10.93272,19.821,19.802,1.0]
[1693823951911,2.31759058,19.819,19.803,55.0]
[1693823952215,2.31759058,19.819,19.804,1.0]
[1693823953425,2.31759058,19.819,19.803,1.0]
[1693823954416,57.31759058,19.819,19.803,1.0]
[1693823954729,45.27002177,19.818,19.802,1.0]
[1693823954930,7.872,19.815,19.795,1.0]
[1693823955135,33.26625058,19.814,19.795,1.0]
[1693823955329,30.94866,19.814,19.795,1.0]
[1693823956028,55.0,19.813,19.795,1.0]
[1693823956219,29.12,19.81,19.795,1.0]
[1693823957431,40.06866,19.81,19.795,1.0]
[1693823957631,90.055,19.809,19.795,1.0]
[1693823960835,90.055,19.809,19.79,39.93945509]
[1693823960836,20.0,19.808,19.791,1.0]
[1693823961134,27.876,19.808,19.788,51.741567]
[1693823961325,27.876,19.808,19.789,1.0]
[1693823961326,55.0,19.807,19.789,1.0]
[1693823961525,55.0,19.807,19.785,1.0]
[1693823961827,27.876,19.806,19.785,1.0]
[1693823962022,55.0,19.805,19.785,1.0]
[1693823962223,20.0,19.804,19.785,1.0]
[1693823962733,20.0,19.804,19.786,25.27002177]
[1693823962935,20.0,19.808,19.787,1.0]
[1693823965141,62.876,19.807,19.787,1.0]
[1693823965337,62.876,19.807,19.784,40.66633013]
[1693823965338,20.0,19.806,19.785,1.0]
[1693823965643,55.0,19.805,19.785,1.0]
[1693823965937,55.0,19.805,19.783,14.80747851]
[1693823965938,20.0,19.804,19.784,1.0]
[1693823966236,55.0,19.803,19.784,1.0]
[1693823966426,10.96444,19.802,19.784,81.27002177]
[1693823966631,10.96444,19.802,19.785,25.27002177]
[1693823966833,10.96444,19.802,19.786,56.0]
[1693823969629,10.96444,19.802,19.786,81.27002177]
[1693823969837,10.96444,19.802,19.787,25.27002177]
[1693823970036,10.96444,19.802,19.788,56.0]
[1693823971431,90.055,19.809,19.788,56.0]
[1693823971723,34.1858,19.808,19.788,56.0]
[1693823972819,14.1858,19.808,19.788,56.0]
[1693823973021,14.1858,19.808,19.79,1.0]
[1693823973225,14.1858,19.808,19.79,56.0]
[1693823973423,14.1858,19.808,19.792,1.0]
[1693823973639,14.1858,19.808,19.792,56.0]
[1693823977039,14.1858,19.808,19.792,112.0]
[1693823980540,91.6591,19.812,19.792,112.0]
[1693823981146,0.93450886,19.817,19.792,112.0]
[1693823981445,39.45582177,19.816,19.792,112.0]
[1693823981654,36.50339058,19.815,19.792,112.0]
[1693823982236,36.50339058,19.815,19.792,152.42424242]
[1693823983344,36.50339058,19.815,19.793,25.27002177]
[1693823983547,36.50339058,19.815,19.795,1.0]
[1693823983739,36.50339058,19.815,19.795,26.27002177]
[1693823983945,36.50339058,19.815,19.797,1.0]
[1693823984348,16.50339058,19.815,19.797,1.0]
[1693823984538,16.50339058,19.815,19.797,26.27002177]
[1693823984740,20.0,19.814,19.799,1.0]
[1693823985245,22.31759058,19.817,19.799,1.0]
[1693823985433,36.50339058,19.817,19.799,1.0]
[1693823985945,97.1426,19.816,19.799,1.0]
[1693823986248,20.0,19.815,19.799,1.0]
[1693823986628,2.31759058,19.814,19.799,1.0]
[1693823994653,2.31759058,19.814,19.799,42.21958606]
[1693823994854,2.31759058,19.814,19.801,1.0]
[1693823999949,2.31759058,19.814,19.799,41.21958606]
[1693823999950,2.31759058,19.814,19.8,1.0]
[1693824001255,2.31759058,19.814,19.8,56.0]
[1693824009370,29.12,19.81,19.793,1.0]
[1693824009563,29.12,19.81,19.789,21.0]
[1693824009865,98.427,19.809,19.789,21.0]
[1693824010171,98.427,19.809,19.789,46.270022]
[1693824010762,98.427,19.809,19.789,71.54004377]
[1693824011363,14.1858,19.808,19.789,71.54004377]
[1693824017469,14.1858,19.808,19.79,25.27002177]
[1693824017671,14.1858,19.808,19.791,21.0]
[1693824029986,14.1858,19.808,19.791,98.01158824]
[1693824030370,14.1858,19.808,19.793,1.0]
[1693824038487,98.427,19.809,19.793,1.0]
[1693824038784,98.427,19.809,19.793,78.01158824]
[1693824039889,98.427,19.809,19.794,55.0]
[1693824040187,98.427,19.809,19.795,1.0]
[1693824041990,29.17,19.81,19.795,1.0]
[1693824048998,99.9045,19.814,19.795,1.0]
[1693824048999,99.9045,19.814,19.8,29.17]
[1693824049182,99.9045,19.814,19.802,1.0]
[1693824052201,29.17,19.82,19.802,1.0]
[1693824052503,0.91469225,19.819,19.802,1.0]
[1693824053391,97.83619225,19.819,19.802,1.0]
[1693824053602,97.83619225,19.819,19.802,26.27002177]
[1693824053805,97.83619225,19.819,19.803,55.0]
[1693824054008,0.91469225,19.819,19.804,1.0]
[1693824054302,97.83619225,19.819,19.804,1.0]
[1693824054707,96.9215,19.819,19.804,1.0]
[1693824055106,29.17,19.82,19.804,1.0]
[1693824055294,93.2266,19.819,19.804,1.0]
[1693824060318,0.66678923,19.818,19.804,1.0]
[1693824061205,0.66678923,19.818,19.803,1.0]
[1693824061691,57.31759058,19.819,19.803,1.0]
[1693824062096,57.31759058,19.819,19.797,1.0]
[1693824062097,29.17,19.81,19.797,1.0]
[1693824062410,95.079,19.809,19.794,1.0]
[1693824062802,29.17,19.81,19.794,1.0]
[1693824063029,95.079,19.808,19.794,1.0]
[1693824064196,29.17,19.81,19.794,1.0]
[1693824064394,96.8166,19.807,19.794,1.0]
[1693824067108,96.8166,19.807,19.792,1.0]
[1693824067409,96.8166,19.807,19.792,21.0]
[1693824069507,107.70053,19.807,19.792,21.0]
[1693824069704,107.70053,19.807,19.792,1.0]
[1693824069899,107.70053,19.807,19.791,1.0]
[1693824069900,30.90359,19.806,19.791,1.0]
[1693824070101,29.17,19.8,19.791,1.0]
[1693824070541,92.1853,19.799,19.79,1.0]
[1693824070813,92.1853,19.799,19.786,40.726905]
[1693824070814,92.1853,19.799,19.787,1.0]
[1693824073304,20.0,19.798,19.787,1.0]
[1693824073613,75.0,19.798,19.781,1.0]
[1693824073799,29.17,19.79,19.777,14.79242424]
[1693824074000,29.17,19.79,19.778,2.62701978]
[1693824074499,90.6747,19.789,19.778,2.62701978]
[1693824074803,90.6747,19.789,19.775,2.62701978]
[1693824075806,90.6747,19.789,19.774,2.62701978]
[1693824076097,101.59776,19.789,19.774,2.62701978]
[1693824076298,101.59776,19.789,19.771,2.62701978]
[1693824076515,101.59776,19.789,19.771,2.12701978]
[1693824077314,101.59776,19.789,19.771,22.12701978]
[1693824077505,55.0,19.788,19.771,22.12701978]
[1693824079819,10.93929,19.787,19.771,22.12701978]
[1693824080519,10.93929,19.787,19.771,47.39704155]
[1693824080719,10.93929,19.787,19.771,99.13860802]
[1693824080921,10.93929,19.787,19.771,98.63860802]
[1693824096422,10.93929,19.787,19.771,21.62701978]
[1693824098233,29.22,19.78,19.771,1.62701978]
[1693824098439,95.0845,19.779,19.769,1.62701978]
[1693824098631,95.0845,19.779,19.764,1.62701978]
[1693824098833,95.0845,19.779,19.762,1.62701978]
[1693824100127,95.0845,19.779,19.76,109.41413474]
[1693824100318,95.0845,19.779,19.761,0.99963904]
[1693824101025,109.8721643,19.779,19.761,0.99963904]
[1693824101226,109.8721643,19.779,19.761,20.99963904]
[1693824101732,10.95538,19.778,19.761,20.99963904]
[1693824101919,10.95538,19.778,19.761,0.99963904]
[1693824102319,10.95538,19.778,19.761,20.99963904]
[1693824103330,20.0,19.777,19.761,0.99963904]
[1693824103914,30.95538,19.777,19.761,0.99963904]
[1693824104117,30.95538,19.777,19.76,40.09706774]
[1693824104420,30.95538,19.777,19.758,14.88473204]
[1693824104714,30.95538,19.777,19.759,1.11831751]
[1693824104916,30.95538,19.777,19.759,56.11831751]
[1693824105125,29.22,19.77,19.759,1.11831751]
[1693824105534,29.22,19.77,19.758,1.11831751]
[1693824106028,29.22,19.77,19.757,1.11831751]
[1693824107515,29.22,19.77,19.757,56.11831751]
[1693824108531,10.95538,19.777,19.757,56.11831751]
[1693824108731,20.0,19.776,19.76,29.22]
[1693824108927,20.0,19.776,19.761,56.11831751]
[1693824109124,20.0,19.776,19.761,55.0]
[1693824112939,10.95538,19.777,19.761,55.0]
[1693824113141,10.95538,19.777,19.762,0.86920266]
[1693824113442,10.95538,19.777,19.762,20.86920266]
[1693824113630,10.95538,19.777,19.763,55.0]
[1693824113830,10.95538,19.777,19.764,1.55265152]
[1693824114736,10.95538,19.777,19.757,25.27002177]
[1693824114737,10.95538,19.777,19.758,76.62701978]
[1693824114925,55.0,19.776,19.758,21.62701978]
[1693824115126,29.22,19.77,19.757,1.62701978]
[1693824116239,29.22,19.77,19.757,56.62701978]
[1693824116542,29.22,19.77,19.757,1.62701978]
[1693824116740,29.22,19.77,19.756,40.75265553]
[1693824116941,29.22,19.77,19.755,40.752655]
[1693824117146,29.22,19.77,19.756,0.62411706]
[1693824117535,29.22,19.77,19.755,0.98132901]
[1693824117944,94.6966,19.775,19.755,0.98132901]
[1693824118241,85.97476,19.774,19.755,0.98132901]
[1693824118438,85.97476,19.774,19.755,55.98132901]
[1693824118844,10.97476,19.773,19.755,97.0860331]
[1693824120841,10.97476,19.773,19.755,42.0860331]
[1693824121829,146.35,19.77,19.753,42.086033]
[1693824122030,179.51102177,19.77,19.749,40.03238865]
[1693824122228,7.892,19.766,19.741,1.62701978]
[1693824122430,75.0,19.765,19.741,21.62701978]
[1693824122632,166.8986,19.765,19.741,102.63858678]
[1693824123054,166.8986,19.765,19.741,154.38015325]
[1693824123638,10.99029,19.764,19.741,154.38015325]
[1693824123845,20.0,19.763,19.742,55.0]
[1693824124039,11.00568,19.762,19.743,1.62701978]
[1693824126451,29.27,19.76,19.742,1.62701978]
[1693824127749,29.27,19.76,19.742,56.62701978]
[1693824132158,29.27,19.76,19.742,108.36858625]
[1693824134953,11.00568,19.762,19.742,108.36858625]
[1693824135562,11.00568,19.762,19.743,51.74156647]
[1693824135862,11.00568,19.762,19.744,56.62701978]
[1693824136164,11.00568,19.762,19.744,108.36858625]
[1693824137354,91.8986,19.765,19.745,51.74156647]
[1693824137553,20.0,19.764,19.746,56.62701978]
[1693824140666,91.8986,19.765,19.746,56.62701978]
[1693824140967,20.0,19.764,19.747,116.06598137]
[1693824141270,20.0,19.764,19.748,1.62701978]
[1693824141467,20.0,19.764,19.748,112.05191959]
[1693824141965,20.0,19.764,19.748,203.95051959]
[1693824143667,15.54048582,19.773,19.75,29.27]
[1693824143859,7.887,19.778,19.751,102.32194136]
[1693824144163,93.4616,19.772,19.751,157.32194136]
[1693824144462,14.1858,19.777,19.751,157.32194136]
[1693824144666,107.6474,19.777,19.751,157.32194136]
[1693824145551,55.0,19.776,19.751,137.32194136]
[1693824145753,29.27,19.77,19.751,57.05191959]
[1693824145955,29.27,19.77,19.753,1.62701978]
[1693824146355,93.5033,19.769,19.753,1.62701978]
[1693824147168,93.5033,19.769,19.752,20.0]
[1693824147767,93.5033,19.769,19.752,0.51008211]
[1693824148076,93.5033,19.769,19.752,55.51008211]
[1693824148366,34.1858,19.768,19.752,0.51008211]
[1693824148671,34.1858,19.768,19.741,56.68123042]
[1693824148672,34.1858,19.768,19.751,40.36418816]
[1693824148857,34.1858,19.768,19.747,56.64358616]
[1693824149668,34.1858,19.768,19.748,55.0]
[1693824149866,34.1858,19.768,19.749,1.21868635]
[1693824151978,14.1858,19.768,19.749,1.21868635]
[1693824152179,20.0,19.767,19.749,1.21868635]
[1693824152476,20.0,19.767,19.749,0.53297712]
[1693824152867,20.0,19.767,19.75,25.27002177]
[1693824153169,14.1858,19.768,19.75,25.27002177]
[1693824153170,14.1858,19.768,19.752,0.7403906]
[1693824153378,14.1858,19.768,19.753,25.27002177]
[1693824153578,15.0167004,19.77,19.754,55.0]
[1693824153779,15.0167004,19.77,19.755,1.07607388]
[1693824154069,15.0167004,19.77,19.754,80.27002177]
[1693824154272,92.7934,19.774,19.754,80.27002177]
[1693824154477,20.0,19.773,19.754,80.27002177]
[1693824154865,20.0,19.773,19.754,160.54004377]
[1693824157778,20.0,19.773,19.756,0.76828367]
[1693824157978,20.0,19.773,19.757,25.27002177]
[1693824158182,20.0,19.773,19.758,55.0]
[1693824159983,20.0,19.773,19.759,0.54438355]
[1693824160179,20.0,19.773,19.758,55.0]
[1693824172787,20.0,19.773,19.758,95.22660596]
[1693824187679,29.26,19.77,19.758,40.22660596]
[1693824187880,29.26,19.77,19.754,191.11272655]
[1693824187881,29.26,19.77,19.754,40.21446636]
[1693824188199,43.42929,19.77,19.75,29.26]
[1693824188492,98.4767,19.769,19.751,20.0]
[1693824188996,98.4767,19.769,19.751,49.26]
[1693824189495,98.4767,19.769,19.752,55.0]
[1693824190993,98.4767,19.769,19.753,0.65315414]
[1693824191899,98.4767,19.769,19.751,49.26]
[1693824192095,98.4767,19.769,19.752,0.54436311]
[1693824192402,98.4767,19.769,19.751,20.0]
[1693824192588,112.62964,19.769,19.751,20.0]
[1693824193099,112.62964,19.769,19.752,0.50386169]
[1693824193302,112.62964,19.769,19.752,55.0]
[1693824193498,112.62964,19.769,19.753,0.50500623]
[1693824193684,112.62964,19.769,19.752,55.0]
[1693824194098,112.62964,19.769,19.753,0.51522494]
[1693824194503,112.62964,19.769,19.752,55.0]
[1693824195501,112.62964,19.769,19.753,0.51016471]
[1693824196606,112.62964,19.769,19.752,55.0]
[1693824199004,153.52392426,19.769,19.752,55.0]
[1693824201201,153.52392426,19.769,19.751,20.0]
[1693824201792,14.13676,19.768,19.751,20.0]
[1693824202402,14.13676,19.768,19.752,55.0]
[1693824204007,14.13676,19.768,19.75,40.15376833]
[1693824204199,14.13676,19.768,19.751,20.0]
[1693824204508,14.13676,19.768,19.749,20.0]
[1693824204809,14.13676,19.768,19.75,0.79804659]
[1693824205008,14.13676,19.768,19.749,21.41884479]
[1693824205311,14.13676,19.768,19.75,55.0]
[1693824205626,14.13676,19.768,19.751,20.0]
[1693824205911,14.13676,19.768,19.752,55.0]
[1693824212410,29.58896029,19.768,19.752,55.0]
[1693824213156,29.26,19.76,19.748,39.93930196]
[1693824213414,29.26,19.76,19.734,401.4]
[1693824213622,29.26,19.76,19.742,21.61224062]
[1693824213802,29.26,19.76,19.742,73.35380709]
[1693824215309,29.26,19.76,19.742,53.35380709]
[1693824217410,29.26,19.75,19.742,1.61224062]
[1693824217605,29.26,19.75,19.73,29.26]
[1693824217606,29.26,19.75,19.738,1.61224062]
[1693824217806,29.26,19.75,19.738,41.00050632]
[1693824218215,29.26,19.75,19.733,121.75219937]
[1693824218531,29.26,19.75,19.734,26.89704155]
[1693824218710,91.5545,19.758,19.735,51.74156647]
[1693824218899,91.5545,19.758,19.741,1.62701978]
[1693824219099,91.5545,19.758,19.742,25.27002177]
[1693824219303,91.5545,19.758,19.737,26.89704155]
[1693824219517,105.67525,19.758,19.739,1.62701978]
[1693824219716,105.67525,19.758,19.739,26.89704155]
[1693824219919,105.67525,19.758,19.741,1.62701978]
[1693824220322,105.67525,19.758,19.741,21.62701978]
[1693824220524,105.67525,19.758,19.742,55.0]
[1693824222912,29.26,19.75,19.741,20.0]
[1693824223219,29.26,19.75,19.74,20.0]
[1693824224819,29.26,19.75,19.741,55.0]
[1693824225022,29.26,19.75,19.742,20.0]
[1693824225809,29.26,19.75,19.74,20.0]
[1693824226511,29.26,19.75,19.737,51.99434425]
[1693824226711,29.26,19.75,19.738,1.15708603]
[1693824227120,14.1049,19.749,19.738,1.15708603]
[1693824227720,14.1049,19.749,19.737,40.46582278]
[1693824227925,14.1049,19.749,19.733,15.0106329]
[1693824228224,14.1049,19.749,19.734,1.62701978]
[1693824228823,95.9602,19.748,19.734,56.62701978]
[1693824229320,95.9602,19.748,19.734,1.62701978]
[1693824229522,14.08921,19.747,19.733,1.62701978]
[1693824229833,14.08921,19.747,19.733,21.62701978]
[1693824230413,14.08921,19.747,19.734,55.0]
[1693824230611,14.08921,19.747,19.735,1.62701978]
[1693824230813,14.08921,19.747,19.734,1.62701978]
[1693824232214,14.08921,19.747,19.734,56.62701978]
[1693824238220,14.08921,19.747,19.733,1.62701978]
[1693824238420,14.08921,19.747,19.732,40.53468354]
[1693824238618,29.26,19.74,19.727,0.60184112]
[1693824238829,29.26,19.74,19.725,1.14373414]
[1693824240535,29.26,19.74,19.726,1.55359812]
[1693824240928,29.26,19.74,19.723,21.55359812]
[1693824241324,29.26,19.74,19.723,1.55359812]
[1693824241530,29.26,19.73,19.713,401.4]
[1693824241727,29.26,19.73,19.714,1.31802469]
[1693824241931,29.26,19.73,19.714,25.27002177]
[1693824242238,29.26,19.73,19.715,1.62701978]
[1693824242425,96.1219,19.729,19.715,1.62701978]
[1693824242733,96.1219,19.729,19.711,1.62701978]
[1693824242928,29.26,19.73,19.711,46.89704155]
[1693824243933,29.26,19.73,19.712,55.0]
[1693824244234,29.26,19.73,19.713,46.89704155]
[1693824244540,29.26,19.73,19.714,55.0]
[1693824245035,7.904,19.736,19.715,25.9239398]
[1693824245224,20.0,19.735,19.716,55.0]
[1693824245424,20.0,19.735,19.716,80.27002177]
[1693824248736,7.904,19.736,19.716,80.27002177]
[1693824249343,20.0,19.735,19.716,80.27002177]
[1693824249532,29.26,19.73,19.713,20.0]
[1693824249735,29.26,19.73,19.711,20.0]
[1693824249923,29.26,19.73,19.712,1.4962044]
[1693824250124,29.26,19.73,19.712,26.76622617]
[1693824250324,29.26,19.73,19.713,20.0]
[1693824250525,29.26,19.73,19.714,1.4962044]
[1693824250934,29.26,19.73,19.714,56.4962044]
[1693824254630,14.1858,19.734,19.72,29.26]
[1693824254831,14.1858,19.734,19.721,76.4962044]
[1693824255026,7.904,19.736,19.721,76.4962044]
[1693824255226,7.904,19.736,19.721,75.0]
[1693824255433,7.904,19.736,19.722,0.54835134]
[1693824255727,7.904,19.736,19.721,75.0]
[1693824255928,7.904,19.736,19.722,0.63593439]
[1693824258937,7.904,19.736,19.721,75.0]
[1693824262741,7.904,19.736,19.722,0.50241266]
[1693824263740,7.904,19.736,19.721,75.0]
[1693824264747,7.904,19.736,19.722,0.65049088]
[1693824264937,7.904,19.736,19.721,75.0]
[1693824265248,7.904,19.736,19.722,0.54971689]
[1693824265450,7.904,19.736,19.721,75.0]
[1693824266346,7.904,19.736,19.722,0.51288023]
[1693824269059,7.904,19.736,19.723,25.27002177]
[1693824269242,7.904,19.736,19.724,56.62701978]
[1693824269554,7.904,19.736,19.725,25.27002177]
[1693824269757,7.904,19.736,19.726,55.0]
[1693824270053,7.904,19.736,19.727,25.27002177]
[1693824270252,7.904,19.736,19.728,55.0]
[1693824275549,7.904,19.736,19.727,55.0]
[1693824290572,7.904,19.736,19.728,0.76216333]
[1693824290873,7.904,19.736,19.727,55.0]
[1693824303870,29.35,19.74,19.727,55.0]
[1693824304067,7.904,19.736,19.728,0.7910667]
[1693824304374,7.904,19.736,19.727,55.0]
[1693824304678,7.904,19.736,19.726,41.21236695]
[1693824304858,7.904,19.736,19.723,0.93913005]
[1693824305058,7.904,19.736,19.723,20.93913005]
[1693824305258,7.904,19.736,19.723,40.267503]
[1693824305461,7.904,19.736,19.717,40.32171969]
[1693824305654,7.904,19.736,19.722,0.84647189]
[1693824306060,7.904,19.736,19.721,20.0]
[1693824306458,7.904,19.736,19.722,0.49958671]
[1693824306659,7.904,19.736,19.721,20.0]
[1693824306964,22.13222,19.736,19.721,20.0]
[1693824307576,22.13222,19.736,19.72,39.95134313]
[1693824307764,20.0,19.735,19.715,54.85772186]
[1693824307963,20.0,19.735,19.716,0.96576049]
[1693824308974,14.22822,19.734,19.716,0.96576049]
[1693824309176,14.22822,19.734,19.717,80.12774363]
[1693824309369,20.0,19.733,19.718,0.96576049]
[1693824309571,20.0,19.733,19.718,26.23578226]
[1693824309878,20.0,19.733,19.719,55.0]
[1693824310179,20.0,19.733,19.72,29.35]